Workbook

Sheet Tableau
A2: PLAN DE TRESORERIE 2021
A4: FLUX D'ENCAISSEMENTS
A5: Type décaissement | B5: déc-20 | C5: janv-21 | D5: févr-21 | E5: mars-21 | F5: avr-21 | G5: mai-21 | H5: juin-21 | I5: juil-21 | J5: août-21 | K5: sept-21 | L5: oct-21 | M5: nov-21 | N5: déc-21 | O5: TOTAL
A6: Dons / Collectes | B6: 10,000
A7: Cagnottes en lignes
A8: Subventions
A9: Encaissement sur le mois | B9: =SUM(B6:B8) -> 10,000 | C9: 0 | D9: 0 | E9: 0 | F9: 0 | G9: 0 | H9: 0 | I9: 0 | J9: 0 | K9: 0 | L9: 0 | M9: 0 | N9: 0 | O9: 0
A10: Total Encaissement du mois | C10: =B9+C9 -> 10,000 | D10: =C10+D9 -> 10,000 | E10: =D10+E9 -> 10,000 | F10: =E10+F9 -> 10,000 | G10: =F10+G9 -> 10,000 | H10: =G10+H9 -> 10,000 | I10: =H10+I9 -> 10,000 | J10: =I10+J9 -> 10,000 | K10: =J10+K9 -> 10,000 | L10: =K10+L9 -> 10,000 | M10: =L10+M9 -> 10,000 | N10: =M10+N9 -> 10,000
A12: FLUX DE DECAISSEMENTS
A13: Type décaissement | B13: déc-20 | C13: janv-21 | D13: févr-21 | E13: mars-21 | F13: avr-21 | G13: mai-21 | H13: juin-21 | I13: juil-21 | J13: août-21 | K13: sept-21 | L13: oct-21 | M13: nov-21 | N13: déc-21 | O13: TOTAL
A14: Achat Fruits & Légumes | B14: =1200 -> 1,200 | C14: =1200 -> 1,200 | D14: =1200 -> 1,200 | E14: =1200 -> 1,200 | F14: =1200 -> 1,200 | G14: =1200 -> 1,200 | H14: =1200 -> 1,200 | I14: =1200 -> 1,200 | J14: =1200 -> 1,200 | K14: =1200 -> 1,200 | L14: =1200 -> 1,200 | M14: =1200 -> 1,200 | N14: =1200 -> 1,200 | O14: =SUM(B14:N14) -> 15,600
A15: Achat Epicerie | B15: =300 -> 300 | C15: =300 -> 300 | D15: =300 -> 300 | E15: =300 -> 300 | F15: =300 -> 300 | G15: =300 -> 300 | H15: =300 -> 300 | I15: =300 -> 300 | J15: =300 -> 300 | K15: =300 -> 300 | L15: =300 -> 300 | M15: =300 -> 300 | N15: =300 -> 300 | O15: =SUM(B15:N15) -> 3,900
A16: Achat Pain | B16: =800 -> 800 | C16: =800 -> 800 | D16: =800 -> 800 | E16: =800 -> 800 | F16: =800 -> 800 | G16: =800 -> 800 | H16: =800 -> 800 | I16: =800 -> 800 | J16: =800 -> 800 | K16: =800 -> 800 | L16: =800 -> 800 | M16: =800 -> 800 | N16: =800 -> 800 | O16: 10,400
A17: Carburant | B17: =100 -> 100 | C17: =100 -> 100 | D17: =100 -> 100 | E17: =100 -> 100 | F17: =100 -> 100 | G17: =100 -> 100 | H17: =100 -> 100 | I17: =100 -> 100 | J17: =100 -> 100 | K17: =100 -> 100 | L17: =100 -> 100 | M17: =100 -> 100 | N17: =100 -> 100 | O17: 1,300
A18: Achat consommable | B18: 0 | C18: =800 -> 800 | D18: =800 -> 800 | E18: =800 -> 800 | F18: =800 -> 800 | G18: =800 -> 800 | H18: =800 -> 800 | I18: =800 -> 800 | J18: =800 -> 800 | K18: =800 -> 800 | L18: =800 -> 800 | M18: =800 -> 800 | N18: =800 -> 800 | O18: 9,600
A19: Electricité | B19: =600 -> 600 | C19: =600 -> 600 | D19: =600 -> 600 | E19: =600 -> 600 | F19: =600 -> 600 | G19: =600 -> 600 | H19: =600 -> 600 | I19: =600 -> 600 | J19: =600 -> 600 | K19: =600 -> 600 | L19: =600 -> 600 | M19: =600 -> 600 | N19: =600 -> 600 | O19: 7,800
A20: Fournit, entret ptits équipt | B20: =150 -> 150 | C20: =150 -> 150 | D20: =150 -> 150 | E20: =150 -> 150 | F20: =150 -> 150 | G20: =150 -> 150 | H20: =150 -> 150 | I20: =150 -> 150 | J20: =150 -> 150 | K20: =150 -> 150 | L20: =150 -> 150 | M20: =150 -> 150 | N20: =150 -> 150 | O20: 1,950
A21: Loyer - charges KB | B21: 0 | C21: 0 | D21: 2,900 | E21: 0 | F21: =5500 -> 5,500 | G21: 0 | H21: 0 | I21: =5500 -> 5,500 | J21: 0 | K21: 0 | L21: =5500 -> 5,500 | M21: 0 | N21: 0 | O21: 19,400
A22: ABONNEMENT INFORMATIQUE | B22: =23 -> 23 | C22: =23 -> 23 | D22: =23 -> 23 | E22: =23 -> 23 | F22: =23 -> 23 | G22: =23 -> 23 | H22: =23 -> 23 | I22: =23 -> 23 | J22: =23 -> 23 | K22: =23 -> 23 | L22: =23 -> 23 | M22: =23 -> 23 | N22: =23 -> 23 | O22: 299
A23: VEHICULE (ENTRETIEN ET AUTRES) | B23: 0 | C23: =150 -> 150 | D23: =150 -> 150 | E23: =150 -> 150 | F23: =150 -> 150 | G23: =150 -> 150 | H23: =150 -> 150 | I23: =150 -> 150 | J23: =150 -> 150 | K23: =150 -> 150 | L23: =150 -> 150 | M23: =150 -> 150 | N23: =150 -> 150 | O23: 1,800
A24: ASSURANCE | B24: =125 -> 125 | C24: =125 -> 125 | D24: =125 -> 125 | E24: =125 -> 125 | F24: =125 -> 125 | G24: =125 -> 125 | H24: =125 -> 125 | I24: =125 -> 125 | J24: =125 -> 125 | K24: =125 -> 125 | L24: =125 -> 125 | M24: =125 -> 125 | N24: =125 -> 125 | O24: 1,625
A25: REMUNERATION INTERMEDIAIRE | B25: =0 -> 0 | C25: =150 -> 150 | D25: =150 -> 150 | E25: =150 -> 150 | F25: =150 -> 150 | G25: =150 -> 150 | H25: =150 -> 150 | I25: =150 -> 150 | J25: =150 -> 150 | K25: =150 -> 150 | L25: =150 -> 150 | M25: =150 -> 150 | N25: =150 -> 150 | O25: 1,800
A26: VOY DEPL MISSION | B26: =50 -> 50 | C26: =50 -> 50 | D26: =50 -> 50 | E26: =50 -> 50 | F26: =50 -> 50 | G26: =50 -> 50 | H26: =50 -> 50 | I26: =50 -> 50 | J26: =50 -> 50 | K26: =50 -> 50 | L26: =50 -> 50 | M26: =50 -> 50 | N26: =50 -> 50 | O26: 650
A27: AFFRANCHISSEMENT | B27: =30 -> 30 | C27: =30 -> 30 | D27: =30 -> 30 | E27: =30 -> 30 | F27: =30 -> 30 | G27: =30 -> 30 | H27: =30 -> 30 | I27: =30 -> 30 | J27: =30 -> 30 | K27: =30 -> 30 | L27: =30 -> 30 | M27: =30 -> 30 | N27: =30 -> 30 | O27: 390
A28: INTERNET | B28: =85 -> 85 | C28: =85 -> 85 | D28: =85 -> 85 | E28: =85 -> 85 | F28: =85 -> 85 | G28: =85 -> 85 | H28: =85 -> 85 | I28: =85 -> 85 | J28: =85 -> 85 | K28: =85 -> 85 | L28: =85 -> 85 | M28: =85 -> 85 | N28: =85 -> 85 | O28: 1,105
A29: TELECOM | B29: =30 -> 30 | C29: =30 -> 30 | D29: =30 -> 30 | E29: =30 -> 30 | F29: =30 -> 30 | G29: =30 -> 30 | H29: =30 -> 30 | I29: =30 -> 30 | J29: =30 -> 30 | K29: =30 -> 30 | L29: =30 -> 30 | M29: =30 -> 30 | N29: =30 -> 30 | O29: 390
A30: SERVICES BANCAIRES | B30: =100 -> 100 | C30: =100 -> 100 | D30: =100 -> 100 | E30: =100 -> 100 | F30: =100 -> 100 | G30: =100 -> 100 | H30: =100 -> 100 | I30: =100 -> 100 | J30: =100 -> 100 | K30: =100 -> 100 | L30: =100 -> 100 | M30: =100 -> 100 | N30: =100 -> 100 | O30: 1,300
A31: COTISATIONS DIVERSES | B31: 0 | C31: =20 -> 20 | D31: =20 -> 20 | E31: =20 -> 20 | F31: =20 -> 20 | G31: =20 -> 20 | H31: =20 -> 20 | I31: =20 -> 20 | J31: =20 -> 20 | K31: =20 -> 20 | L31: =20 -> 20 | M31: =20 -> 20 | N31: =20 -> 20 | O31: 240
A32: SALAIRES | B32: =2200 -> 2,200 | C32: =2200 -> 2,200 | D32: =2200 -> 2,200 | E32: =2200 -> 2,200 | F32: =2200 -> 2,200 | G32: =2200 -> 2,200 | H32: =2200 -> 2,200 | I32: =2200 -> 2,200 | J32: =2200 -> 2,200 | K32: =2200 -> 2,200 | L32: =2200 -> 2,200 | M32: =2200 -> 2,200 | N32: =2200 -> 2,200 | O32: 28,600
A33: CHARGES SUR SALAIRE | B33: =800 -> 800 | C33: =800 -> 800 | D33: =800 -> 800 | E33: =800 -> 800 | F33: =800 -> 800 | G33: =800 -> 800 | H33: =800 -> 800 | I33: =800 -> 800 | J33: =800 -> 800 | K33: =800 -> 800 | L33: =800 -> 800 | M33: =800 -> 800 | N33: =800 -> 800 | O33: 10,400
A34: ECHEANCE PRÊT | B34: =635 -> 635 | C34: =635 -> 635 | D34: =635 -> 635 | E34: =635 -> 635 | F34: =635 -> 635 | G34: =635 -> 635 | H34: =635 -> 635 | I34: =635 -> 635 | J34: =635 -> 635 | K34: =635 -> 635 | L34: =635 -> 635 | M34: =635 -> 635 | N34: =635 -> 635 | O34: 8,255
A35: DETTE ANDES | B35: =1500 -> 1,500 | C35: 1,500 | D35: =1135 -> 1,135 | O35: 4,135 | P35: echeancier
A36: DETTE CONSOMMABLE | B36: =2257 -> 2,257 | O36: 2,257 | P36: fact 10/2020
A37: DETTE RESTO DU CŒUR | B37: =2061 -> 2,061 | C37: =2061 -> 2,061 | D37: =2061 -> 2,061 | E37: =2061 -> 2,061 | F37: =2061 -> 2,061 | G37: =2061 -> 2,061 | H37: =2061 -> 2,061 | I37: =2061 -> 2,061 | J37: 0 | K37: 0 | L37: 0 | M37: 0 | N37: 0 | O37: 16,488 | P37: echeancier
A38: AUTRE DETTES
A39: URSSAF | B39: 1,500 | O39: 1,500
A40: Décaissement sur le mois | B40: =SUM(B14:B39) -> 14,546 | C40: =SUM(C14:C39) -> 11,909 | D40: 14,444 | E40: 10,409 | F40: 15,909 | G40: 10,409 | H40: 10,409 | I40: 15,909 | J40: 8,348 | K40: 8,348 | L40: 13,848 | M40: 8,348 | N40: 8,348 | O40: =SUM(O14:O39) -> 151,184
A41: Total décaissement du mois | C41: =B40+C40 -> 26,455 | D41: =C41+D40 -> 40,899 | E41: 51,308 | F41: 67,217 | G41: 77,626 | H41: 88,035 | I41: 103,944 | J41: 112,292 | K41: 120,640 | L41: 134,488 | M41: 142,836 | N41: 151,184
A43: FACTURATION MOY PAR AN
A44: RESTO DU CŒUR | C44: 280 | D44: 280 | E44: 280 | F44: 280 | G44: 280 | H44: 280 | I44: 280 | J44: 280 | K44: 280 | L44: 280 | M44: 280 | N44: 3080
A45: ACHAT BANQUE ALIMENTAIRE | C45: 550 | D45: 550 | E45: 550 | F45: 550 | G45: 550 | H45: 550 | I45: 550 | J45: 550 | K45: 550 | L45: 550 | M45: 550 | N45: 6050
A46: DETTES ANCIENNES
A47: DETTE KB1 | C47: 11855 | D47: (peut etre - 5000) payé sur 10 mois à partir du 02/21 | E47: 2018+3eme tr 20
A48: DETTE KB2 | C48: =5500-4300 -> 1200 | D48: en attente | E48: 4 eme tr 20
A49: DETTE BA 2020 | C49: 5644 | D49: a partir 02/21 sur 11 mois
A50: DETTE AURORE | C50: 18000 | D50: Aucun décaissement

Sheet Saisie ENCAISSEMENT
A1: ENREGISTREMENT DES ENCAISSEMENTS
B4: date d'entrée | C4: Type Décaissement | D4: Commentaire | E4: Quantité / Prix unitaire | F4: somme (€) | G4: Échéance de paiement
B5: 2020-12-24 | C5: Dons / Collectes | D5: Dons Décembre 2020 | F5: 10000 | G5: 2021-02-01

Sheet Saisie DECAISSEMENT
A1: ENREGISTREMENT DES DECAISSEMENTS
B4: date de commande | C4: Type Décaissement | D4: Commentaire | E4: Quantité / Prix unitaire | F4: somme (€) | G4: Échéance de paiement
B5: 2020-12-26 | C5: AUTRE DETTES | D5: Dette BA étalé sur 11 mois à partir du 02/21 | F5: =5644/11 -> 513.09 | G5: 2021-02-01

Sheet Liste Encaissements
A1: Relevés des encaissements
A3: date d'entrée | B3: Type Décaissement | C3: Commentaire | D3: Quantité / Prix unitaire | E3: somme (€) | F3: Échéance de paiement | G3: Etat | H3: Date de paiement
A4: 2021-01-02 | B4: Dons / Collectes | C4: Dons Décembre 2020 | E4: 10000 | F4: 2021-02-01

Sheet Liste Décaissements
A1: Relevés des décaissements
A3: date de commande | B3: Type Décaissement | C3: Commentaire | D3: Quantité/ Prix unitaire | E3: Montant Total | F3: Échéance de paiement | G3: Etat | H3: Date de paiement
A4: 2020-12-26 | B4: Achat consommable | C4: Consommables Décembre 2020 | E4: 6,200.00 € | F4: 2021-01-01
A5: 2020-12-26 | B5: AUTRE DETTES | C5: dette KB2 | E5: 1,200.00 € | F5: 2021-01-15
A6: 2020-12-26 | B6: ASSURANCE | C6: 1400€ étalé du 01/21 au 06/21 | E6: =1400/6 -> 233.33 € | F6: 2021-01-31
A7: 2020-12-26 | B7: Electricité | C7: Payé sur le mois du 02/21 | E7: 2,380.00 € | F7: 2021-02-01
A8: 2020-12-26 | B8: Loyer - charges KB | C8: Solde travaux cuisine KB - payé sur le mois du 02/21 | E8: 5,335.00 € | F8: 2021-02-01
A9: 2020-12-26 | B9: VEHICULE (ENTRETIEN ET AUTRES) | C9: Achat camion - paiement 1/2 | E9: 10,000.00 € | F9: 2021-02-01
A10: 2020-12-26 | B10: AUTRE DETTES | C10: Dette BA étalé sur 11 mois à partir du 02/21 | E10: =5644/11 -> 513.09 € | F10: 2021-02-01
A11: 2020-12-26 | B11: Loyer - charges KB | C11: Divers travaux KB - 03/21 - payé sur le mois du 03/21 | E11: 3,500.00 € | F11: 2021-03-01
A12: 2020-12-26 | B12: VEHICULE (ENTRETIEN ET AUTRES) | C12: Achat camion - paiement 2/2 | E12: 5,000.00 € | F12: 2021-03-01
A13: 2020-12-26 | B13: Loyer - charges KB | C13: Achat chambre froide - paiement 1/2 | E13: 5,000.00 € | F13: 2021-04-01
A14: 2020-12-26 | B14: Loyer - charges KB | C14: Achat chambre froide - paiement 2/2 | E14: 4,200.00 € | F14: 2021-05-01
A15: 2020-12-26 | B15: Loyer - charges KB | C15: Achat table de cuisson - payé sur le mois du 06/21 | E15: 2,900.00 € | F15: 2021-06-30
